[Event "Polish Youth 1st League 2022"]
[Site "Lublin"]
[Date "2022.06.30"]
[Round "6.6"]
[White "Dzierzgowska, Jagoda"]
[Black "Wieczorek, Maja"]
[Result "1/2-1/2"]
[ECO "E70"]
[WhiteElo "1267"]
[BlackElo "1316"]
[Annotator "NA RC"]
[PlyCount "91"]
[EventDate "2022.06.24"]
[EventType "team-tourn"]
[EventCountry "POL"]
[SourceTitle "playchess.com"]
[Source "ChessBase"]
[SourceQuality "1"]
[TimeControl "40/5400+30:1800+30"]

1. d4 {[%emt 0:00:04]} Nf6 {[%emt 0:00:07]} 2. c4 {[%emt 0:00:07]} g6 {[%emt 0:00:06]} 3. Nc3 {[%emt 0:00:10]} Bg7 {[%emt 0:00:22]} 4. e4 {[%emt 0:00:20]} O-O {[%emt 0:00:18]} 5. Nf3 {[%emt 0:00:16]} c6 {[%emt 0:00:34]} 6. e5 {[%emt 0:04:30]} Ne8 {[%emt 0:00:24]} 7. Nd2 {[%emt 0:03:46]} d6 {[%emt 0:00:54]} 8. exd6 {[%emt 0:03:13]} exd6 {[%emt 0:02:56]} 9. Nb3 {[%emt 0:00:32]} Nc7 {[%emt 0:01:18]} 10. Be2 {[%emt 0:03:58]} f5 {[%emt 0:02:10]} 11. O-O {[%emt 0:03:16]} f4 {[%emt 0:05:49]} 12. Bg4 {[%emt 0:09:11]} Nd7 {[%emt 0:11:30]} 13. d5 {[%emt 0:13:57]} Ne5 {[%emt 0:05:45]} 14. Bxc8 {[%emt 0:01:54]} Rxc8 {[%emt 0:00:11]} 15. f3 Nxc4 {[%emt 0:02:43]} 16. dxc6 {[%emt 0:09:00]} bxc6 {[%emt 0:00:27]} 17. Nd4 {[%emt 0:02:36]} Qe8 {[%emt 0:05:14]} 18. Qd3 {[%emt 0:09:20]} Ne5 {[%emt 0:03:45]} 19. Qd1 {[%emt 0:03:25]} Ne6 {[%emt 0:06:29]} 20. Nxe6 {[%emt 0:03:24]} Qxe6 {[%emt 0:00:07]} 21. Ne4 {[%emt 0:00:59]} d5 {[%emt 0:03:23]} 22. Nc5 {[%emt 0:02:25]} Qe7 {[%emt 0:06:21]} 23. Nd3 {[%emt 0:04:23]} Nc4 {[%emt 0:06:58]} 24. Re1 {[%emt 0:02:55]} Qh4 {[%emt 0:03:23]} 25. Qe2 {[%emt 0:04:24]} Bd4+ {[%emt 0:04:35]} 26. Kh1 {[%emt 0:00:19]} Rce8 {[%emt 0:00:50]} 27. Qxe8 {[%emt 0:00:48]} Rxe8 {[%emt 0:00:14]} 28. Rxe8+ {[%emt 0:00:06]} Kf7 {[%emt 0:00:35]} 29. Re2 g5 {[%emt 0:05:40]} 30. Rb1 {[%emt 0:03:39]} Nd6 {[%emt 0:07:21]} 31. Bd2 {[%emt 0:03:33]} Nf5 {[%emt 0:03:50]} 32. Be1 {[%emt 0:01:16]} Qh6 {[%emt 0:01:09]} 33. Ne5+ {[%emt 0:00:29]} Bxe5 {[%emt 0:01:25]} 34. Rxe5 {[%emt 0:00:06]} Qg6 {[%emt 0:02:42]} 35. Rc1 {[%emt 0:00:57]} Ne3 {[%emt 0:01:40]} 36. Bb4 {[%emt 0:02:53]} Nf5 {[%emt 0:06:07]} 37. Rce1 Qf6 {[%emt 0:00:42]} 38. b3 {[%emt 0:04:07]} Ne3 {[%emt 0:00:40]} 39. Bc3 {[%emt 0:01:04]} d4 {[%emt 0:00:24]} 40. Bxd4 Qd6 {[%emt 0:00:00]} 41. Bc3 {[%emt 0:01:24]} Qd3 {[%emt 0:02:58]} 42. Rc5 {[%emt 0:02:53]} Qc2 {[%emt 0:04:28]} 43. Rg1 {[%emt 0:02:19]} Nd1 {[%emt 0:04:06]} 44. Bd4 {[%emt 0:00:14]} Qd3 {[%emt 0:00:49]} 45. Rc1 {[%emt 0:02:41]} Qxd4 {[%emt 0:02:40]} 46. Rgxd1 {[%emt 0:00:10]} 1/2-1/2

[Event "Polish Youth 1st League 2022"]
[Site "Lublin"]
[Date "2022.06.30"]
[Round "6.7"]
[White "Luczak, Filip"]
[Black "Wojdak, Jan"]
[Result "1-0"]
[ECO "A05"]
[WhiteElo "2311"]
[BlackElo "2144"]
[Annotator "TA"]
[PlyCount "87"]
[EventDate "2022.06.24"]
[EventType "team-tourn"]
[EventCountry "POL"]
[SourceTitle "playchess.com"]
[Source "ChessBase"]
[SourceQuality "1"]
[TimeControl "40/5400+30:1800+30"]

{[%evp 14,87,50,31,48,40,87,83,100,104,103,102,115,110,106,85,157,170,148,133,129,107,116,108,114,91,156,151,161,164,301,286,284,214,202,184,298,302,300,300,368,384,343,310,511,318,316,318,362,355,350,326,789,838,890,894,843,833,729,676,1156,921,962,879,780,795,1053,1025,1003,859,1235,1279,1596,1573,1149,853]} 1. Nf3 {[%emt 0:00:04]} Nf6 {[%emt 0:00:08]} 2. e3 {[%emt 0:00:11]} g6 {[%emt 0:00:24]} 3. d4 {[%emt 0:00:23]} Bg7 {[%emt 0:00:15]} 4. Be2 {[%emt 0:01:40]} O-O {[%emt 0:00:45]} 5. O-O {[%emt 0:00:37]} d6 {[%emt 0:04:37]} 6. c4 {[%emt 0:03:17]} c5 {[%emt 0:00:08]} 7. Nc3 {[%emt 0:00:52]} b6 {[%emt 0:08:28]} 8. d5 {[%emt 0:03:11]} Na6 {[%emt 0:08:24] E61: King's Indian: Early deviations for White, including Smyslov System.} 9. e4 {[%emt 0:03:04]} Nd7 {[%emt 0:08:09]} (9... Nc7 $14) 10. Bg5 $16 {[%emt 0:07:12] [#]} Ne5 $146 {[%emt 0:09:17] White is better.} ({Predecessor:} 10... f6 11. Be3 Nc7 12. Nd2 Ne5 13. f4 Nf7 14. g4 Bd7 15. a4 a6 16. f5 Rb8 {0-1 (49) Leonov,M (2031)-Radnaev,A (2038) Ulan-Ude 2011}) 11. Nxe5 {[%emt 0:05:09]} Bxe5 {[%emt 0:00:20]} 12. f4 {[%emt 0:02:30]} Bd4+ {[%emt 0:07:52]} 13. Kh1 {[%emt 0:00:09]} f5 {[%emt 0:03:55]} 14. Bf3 {[%emt 0:03:15][%cal Oe4e5]} Rf7 {[%emt 0:07:35] [#]} (14... fxe4 $142 15. Bxe4 Rf7) 15. e5 $1 {[%emt 0:04:24] Strongly threatening exd6.} Nc7 {[%emt 0:06:31]} 16. Qe1 {[%emt 0:12:38]} Ba6 {[%emt 0:02:39]} 17. e6 {[%emt 0:04:00]} Rg7 {[%emt 0:01:42]} 18. Qe2 {[%emt 0:05:21]} Kh8 {[%emt 0:06:16]} 19. a4 {[%emt 0:01:57][%cal Ba2a4,Ba4b5][%mdl 32]} Rb8 {[%emt 0:00:04]} (19... Rg8 $142) 20. Ra3 {[%emt 0:04:49] 0x0.00207cd2fac1dp-1022s more active pieces.} Rg8 {[%emt 0:01:09]} 21. Nb5 {[%emt 0:01:32]} Nxb5 (21... Bxb5 {was called for.} 22. axb5 Rb7) 22. axb5 $18 {[%emt 0:00:30]} ({Not} 22. cxb5 Bb7 $11) 22... Bb7 {[%emt 0:02:49]} 23. Rxa7 {[%emt 0:00:59]} Qf8 {[%emt 0:00:04]} 24. Qe1 {[%emt 0:06:27]} Qg7 {[%emt 0:00:13]} (24... Bxb2 $142 25. Qh4 Bf6 26. Bxf6+ exf6) 25. Qh4 {[%emt 0:01:11]} Rge8 {[%emt 0:00:04]} 26. b3 {[%emt 0:02:30]} Kg8 {[%emt 0:00:52]} 27. g4 {[%emt 0:02:52]} fxg4 {[%emt 0:01:29]} 28. Bxg4 {[%emt 0:00:57][%cal Bf3g4,Bg4h3,Bh3f1,Bf1e2][%mdl 32]} Be3 $2 {[%emt 0:04:14]} (28... Bf6 29. Bxf6 exf6) 29. f5 {[%emt 0:05:44]} Bxg5 {[%emt 0:03:25]} 30. Qxg5 {[%emt 0:00:02] [#] aiming for fxg6.} Rf8 {[%emt 0:00:06]} 31. Bh3 {[%emt 0:03:10]} Rf6 {[%emt 0:11:27]} 32. fxg6 {[%emt 0:02:51]} Rxf1+ {[%emt 0:01:22]} (32... Rxg6 33. Qe3 Qb2) 33. Bxf1 {[%emt 0:00:05] White is clearly winning.} Qxg6 {[%emt 0:00:27]} 34. Qxg6+ {[%emt 0:02:38]} ({Weaker is} 34. Qxe7 Qe4+ 35. Kg1 Qe3+ 36. Kh1 (36. Kg2 Rf8 $11) 36... Qf3+ 37. Kg1 Qe3+ 38. Kh1 (38. Kg2 Rf8 $11) 38... Qf3+ 39. Kg1 Qe3+ $11) 34... hxg6 {[%emt 0:00:05][%mdl 4096] Endgame KRB-KRB} 35. h4 {[%emt 0:01:29]} Kg7 {[%emt 0:00:03]} 36. Kg2 {[%emt 0:00:07]} Kh6 {[%emt 0:01:28]} 37. Be2 {[%emt 0:00:13]} Kg7 {[%emt 0:01:03]} 38. Kg3 {[%emt 0:00:06]} Kf6 {[%emt 0:00:04]} 39. Kg4 {[%emt 0:00:23]} Bc8 {[%emt 0:01:30]} 40. Bd3 {[%emt 0:00:00]} Bb7 {[%emt 0:00:00]} 41. Bc2 {[%emt 0:00:57]} Bc8 {[%emt 0:01:27]} 42. Ra1 {[%emt 0:01:18]} Bb7 {[%emt 0:00:10]} 43. Rf1+ {[%emt 0:00:10]} Ke5 {[%emt 0:00:02]} 44. Bxg6 {[%emt 0:00:43] Weighted Error Value: White=0.18 (very precise) /Black=0.39} 1-0

[Event "Polish Youth 1st League 2022"]
[Site "Lublin"]
[Date "2022.06.30"]
[Round "6.8"]
[White "Jendrowiak, Maciej"]
[Black "Bachor, Tomasz"]
[Result "1/2-1/2"]
[ECO "B30"]
[WhiteElo "1713"]
[BlackElo "1971"]
[Annotator "RC"]
[PlyCount "110"]
[EventDate "2022.06.24"]
[EventType "team-tourn"]
[EventCountry "POL"]
[SourceTitle "playchess.com"]
[Source "ChessBase"]
[SourceQuality "1"]
[TimeControl "40/5400+30:1800+30"]

1. e4 c5 2. Nf3 Nc6 3. c3 d5 4. exd5 Qxd5 5. d4 g6 6. Be3 cxd4 7. Nxd4 Bg7 8. Nxc6 Qxc6 9. Qb3 Bd7 10. Nd2 Nf6 11. Nf3 Qc7 12. Bb5 O-O 13. Bxd7 Nxd7 14. O-O Rfd8 15. Rad1 b6 16. Rfe1 Nc5 17. Qc4 Ne6 18. Qxc7 Nxc7 19. Bd4 Ne6 20. Bxg7 Kxg7 21. Ne5 Rxd1 22. Rxd1 Rd8 23. Rxd8 Nxd8 24. f3 f6 25. Nd3 Nc6 26. Kf2 e5 27. Ke3 f5 28. b4 Kf6 29. a4 Ke6 30. Nb2 Kd5 31. c4+ Kd6 32. Nd3 a5 33. bxa5 Nxa5 34. Nb2 Kc5 35. Nd3+ Kd6 36. Nb2 g5 37. g3 h5 38. Kd3 Kc5 39. Kc3 e4 40. fxe4 fxe4 41. h3 g4 42. hxg4 hxg4 43. Nd1 Nxc4 44. Nf2 Nd6 45. Nxg4 Nf5 46. Nf6 Nxg3 47. Nd7+ Kc6 48. Ne5+ Kd5 49. Nd7 Kc6 50. Ne5+ Kd6 51. Kd4 Ne2+ 52. Kxe4 Nc3+ 53. Kd4 Nxa4 54. Nc4+ Kc6 55. Nxb6 Nxb6 1/2-1/2

[Event "Polish Youth 1st League 2022"]
[Site "Lublin"]
[Date "2022.06.30"]
[Round "6.9"]
[White "Cieslak, Patryk"]
[Black "Wierzbicki, Dawid"]
[Result "1/2-1/2"]
[ECO "B90"]
[WhiteElo "2019"]
[BlackElo "1556"]
[Annotator "RC"]
[PlyCount "146"]
[EventDate "2022.06.24"]
[EventType "team-tourn"]
[EventCountry "POL"]
[SourceTitle "playchess.com"]
[Source "ChessBase"]
[SourceQuality "1"]
[TimeControl "40/5400+30:1800+30"]

1. e4 {[%emt 0:00:56]} c5 {[%emt 0:00:15]} 2. Nf3 {[%emt 0:00:06]} d6 {[%emt 0:00:07]} 3. d4 {[%emt 0:00:53]} cxd4 {[%emt 0:00:24]} 4. Nxd4 {[%emt 0:00:25]} Nf6 {[%emt 0:00:08]} 5. Nc3 {[%emt 0:01:21]} a6 {[%emt 0:00:07]} 6. Rg1 {[%emt 0:02:13]} b5 {[%emt 0:01:37]} 7. g4 {[%emt 0:04:44]} Bb7 {[%emt 0:05:27]} 8. Bg2 {[%emt 0:04:24]} e6 {[%emt 0:04:21]} 9. g5 {[%emt 0:02:43]} Nfd7 {[%emt 0:01:58]} 10. a3 {[%emt 0:03:29]} Nc6 {[%emt 0:04:52]} 11. Be3 {[%emt 0:05:08]} Nde5 {[%emt 0:02:11]} 12. Nxc6 {[%emt 0:02:39]} Bxc6 {[%emt 0:00:39]} 13. b3 {[%emt 0:02:51]} Qa5 {[%emt 0:05:54]} 14. Bd2 {[%emt 0:04:26]} Qb6 {[%emt 0:03:00]} 15. Be3 {[%emt 0:01:50]} Qa5 {[%emt 0:01:23]} 16. Qd4 {[%emt 0:06:48]} Ng6 {[%emt 0:05:36]} 17. Qd2 {[%emt 0:03:32]} e5 {[%emt 0:04:25]} 18. Nd5 {[%emt 0:02:00]} Qxd2+ {[%emt 0:00:15]} 19. Kxd2 {[%emt 0:00:08]} Bxd5 {[%emt 0:00:22]} 20. exd5 {[%emt 0:00:01]} Be7 {[%emt 0:01:53]} 21. c4 {[%emt 0:03:55]} O-O {[%emt 0:01:34]} 22. Be4 {[%emt 0:04:31]} Rab8 {[%emt 0:05:24]} 23. Rgc1 {[%emt 0:04:55]} bxc4 {[%emt 0:06:06]} 24. bxc4 {[%emt 0:00:03]} Nf4 {[%emt 0:00:55]} 25. h4 {[%emt 0:03:17]} f5 {[%emt 0:04:01]} 26. Bxf4 {[%emt 0:06:05]} exf4 {[%emt 0:03:38]} 27. Bd3 {[%emt 0:00:26]} Bd8 {[%emt 0:01:59]} 28. Rab1 {[%emt 0:00:56]} Bb6 {[%emt 0:02:18]} 29. Ke2 {[%emt 0:00:49]} g6 {[%emt 0:02:56]} 30. Rb3 {[%emt 0:02:45]} Bc5 {[%emt 0:09:10]} 31. Rcb1 {[%emt 0:00:06]} Rxb3 {[%emt 0:02:06]} 32. Rxb3 {[%emt 0:00:02]} a5 {[%emt 0:00:10]} 33. Rb5 {[%emt 0:06:41]} Bxa3 {[%emt 0:01:14]} 34. Rxa5 {[%emt 0:00:06]} Bc5 {[%emt 0:00:05]} 35. h5 {[%emt 0:10:27]} Rb8 {[%emt 0:00:43]} 36. f3 {[%emt 0:03:23]} Rb2+ {[%emt 0:03:54]} 37. Kd1 {[%emt 0:00:02]} Rd2+ {[%emt 0:00:42]} 38. Kxd2 {[%emt 0:00:02]} Bb4+ {[%emt 0:00:05]} 39. Kc2 {[%emt 0:04:48]} Bxa5 {[%emt 0:00:05]} 40. c5 {[%emt 0:00:00]} dxc5 {[%emt 0:00:00]} 41. d6 {[%emt 0:10:37]} Bd8 {[%emt 0:04:46]} 42. Bc4+ {[%emt 0:04:02]} Kf8 {[%emt 0:00:57]} 43. Kb3 {[%emt 0:05:49]} Bxg5 {[%emt 0:00:21]} 44. Be6 {[%emt 0:02:45]} Ke8 {[%emt 0:00:53]} 45. Kc4 {[%emt 0:00:16]} gxh5 {[%emt 0:00:38]} 46. Kxc5 {[%emt 0:00:04]} Kd8 {[%emt 0:00:30]} 47. Bxf5 {[%emt 0:00:08]} h4 {[%emt 0:00:25]} 48. Kd5 {[%emt 0:00:03]} h5 {[%emt 0:01:32]} 49. Ke5 {[%emt 0:01:00]} Bh6 {[%emt 0:00:13]} 50. Bh3 {[%emt 0:00:39]} Bg5 {[%emt 0:00:35]} 51. Kf5 {[%emt 0:01:24]} Bh6 {[%emt 0:00:07]} 52. Ke5 {[%emt 0:00:52]} Bf8 {[%emt 0:00:53]} 53. d7 {[%emt 0:02:00]} Bh6 {[%emt 0:01:25]} 54. Kf5 {[%emt 0:00:03]} Kc7 {[%emt 0:01:08]} 55. Kg6 {[%emt 0:01:35]} Bf8 {[%emt 0:00:24]} 56. Kf7 {[%emt 0:00:05]} Bh6 {[%emt 0:00:04]} 57. Ke6 {[%emt 0:01:15]} Bf8 {[%emt 0:00:39]} 58. Ke5 {[%emt 0:00:44]} Bd6+ {[%emt 0:00:21]} 59. Ke6 {[%emt 0:00:12]} Ba3 {[%emt 0:00:32]} 60. Kf7 {[%emt 0:00:33]} Kd8 {[%emt 0:00:13]} 61. Kf6 {[%emt 0:00:01]} Bd6 {[%emt 0:00:59]} 62. Kg5 {[%emt 0:00:07]} Bb8 {[%emt 0:00:05]} 63. Kxh4 {[%emt 0:00:09]} Bc7 {[%emt 0:00:03]} 64. Kg5 {[%emt 0:00:06]} Bb8 {[%emt 0:00:04]} 65. Kf6 {[%emt 0:00:02]} Bc7 {[%emt 0:00:17]} 66. Ke6 {[%emt 0:00:02]} Bb8 {[%emt 0:00:09]} 67. Kd5 {[%emt 0:00:02]} Bc7 {[%emt 0:00:10]} 68. Kc6 {[%emt 0:00:08]} Bb8 {[%emt 0:00:03]} 69. Kb7 {[%emt 0:00:02]} Be5 {[%emt 0:00:12]} 70. Bf5 {[%emt 0:00:05]} Bd6 {[%emt 0:00:15]} 71. Bh3 {[%emt 0:00:06]} Be5 {[%emt 0:00:08]} 72. Bf5 {[%emt 0:00:04]} Bd6 {[%emt 0:00:08]} 73. Bh3 {[%emt 0:00:02]} Be5 {[%emt 0:00:07]} 1/2-1/2

[Event "Polish Youth 1st League 2022"]
[Site "Lublin"]
[Date "2022.06.30"]
[Round "6.10"]
[White "Oles, Mateusz"]
[Black "Brzezina, Piotr"]
[Result "0-1"]
[ECO "B22"]
[WhiteElo "1201"]
[BlackElo "1633"]
[Annotator "NA RC"]
[PlyCount "106"]
[EventDate "2022.06.24"]
[EventType "team-tourn"]
[EventCountry "POL"]
[SourceTitle "playchess.com"]
[Source "ChessBase"]
[SourceQuality "1"]
[TimeControl "40/5400+30:1800+30"]

1. e4 {[%emt 0:00:02]} c5 {[%emt 0:00:12]} 2. c3 {[%emt 0:00:24]} Nf6 {[%emt 0:00:43]} 3. e5 {[%emt 0:00:15]} Nd5 {[%emt 0:00:09]} 4. Nf3 {[%emt 0:00:39]} Nc6 {[%emt 0:00:22]} 5. Bc4 {[%emt 0:00:47]} Nb6 {[%emt 0:00:13]} 6. Bb3 {[%emt 0:00:11]} d6 {[%emt 0:02:26]} 7. exd6 {[%emt 0:00:38]} Qxd6 {[%emt 0:00:15]} 8. O-O {[%emt 0:01:10]} e6 {[%emt 0:04:33]} 9. d4 {[%emt 0:05:09]} cxd4 {[%emt 0:00:11]} 10. Nxd4 {[%emt 0:00:40]} Nxd4 {[%emt 0:00:13]} 11. Qxd4 {[%emt 0:01:24]} Qxd4 {[%emt 0:00:43]} 12. cxd4 {[%emt 0:00:05]} Bd7 {[%emt 0:02:30]} 13. Nc3 {[%emt 0:02:28]} Bc6 {[%emt 0:00:35]} 14. Bf4 {[%emt 0:03:23]} Kd7 {[%emt 0:13:34]} 15. Rac1 {[%emt 0:09:23]} Bd6 {[%emt 0:01:20]} 16. Bxd6 {[%emt 0:01:15]} Kxd6 {[%emt 0:00:07]} 17. f3 {[%emt 0:00:33]} Rhd8 {[%emt 0:01:37]} 18. Kf2 {[%emt 0:02:34]} Ke7 {[%emt 0:03:36]} 19. Ke3 {[%emt 0:03:47]} Rd7 {[%emt 0:01:54]} 20. Rfd1 {[%emt 0:01:59]} Rad8 {[%emt 0:01:23]} 21. g3 {[%emt 0:04:34]} a5 {[%emt 0:01:08]} 22. a4 {[%emt 0:04:11]} g5 {[%emt 0:19:19]} 23. h4 {[%emt 0:08:33]} gxh4 {[%emt 0:00:22]} 24. gxh4 {[%emt 0:00:05]} Rg8 {[%emt 0:01:20]} 25. Rg1 {[%emt 0:00:29]} Rdd8 {[%emt 0:00:31]} 26. Rcd1 {[%emt 0:02:06]} Rc8 {[%emt 0:11:53]} 27. Rc1 {[%emt 0:06:34]} Kd6 {[%emt 0:07:59]} 28. Kf4 {[%emt 0:12:29]} Rg6 {[%emt 0:02:35]} 29. Rxg6 {[%emt 0:03:41]} hxg6 {[%emt 0:02:10]} 30. Rh1 {[%emt 0:05:35]} Nd5+ {[%emt 0:08:30]} 31. Bxd5 {[%emt 0:00:40]} Bxd5 {[%emt 0:00:16]} 32. Rc1 {[%emt 0:05:06]} Kd7 {[%emt 0:00:48]} 33. Ke3 {[%emt 0:04:15]} Rc4 {[%emt 0:01:22]} 34. Ra1 {[%emt 0:04:53]} Rb4 {[%emt 0:01:56]} 35. Nxd5 {[%emt 0:00:37]} exd5 {[%emt 0:00:07]} 36. Rc1 {[%emt 0:04:18]} b6 {[%emt 0:01:53]} 37. Ra1 {[%emt 0:02:24]} Rxb2 {[%emt 0:01:27]} 38. Kf4 {[%emt 0:00:15]} Kd6 {[%emt 0:01:16]} 39. Kg5 {[%emt 0:00:47]} Rd2 {[%emt 0:02:17]} 40. Kf6 {[%emt 0:00:00]} Rxd4 {[%emt 0:00:00]} 41. Kxf7 {[%emt 0:01:40]} Rxh4 {[%emt 0:00:27]} 42. Kxg6 {[%emt 0:00:13]} Rf4 {[%emt 0:00:17]} 43. Ra3 {[%emt 0:00:49]} d4 {[%emt 0:00:50]} 44. Kg5 {[%emt 0:00:23]} Rf8 {[%emt 0:00:47]} 45. f4 {[%emt 0:01:16]} Kc5 {[%emt 0:00:28]} 46. f5 {[%emt 0:01:28]} Kc4 {[%emt 0:03:18]} 47. Rh3 {[%emt 0:29:20]} d3 {[%emt 0:00:14]} 48. Rh7 {[%emt 0:00:07]} Rd8 {[%emt 0:00:22]} 49. f6 {[%emt 0:00:22]} d2 {[%emt 0:00:04]} 50. Rh4+ {[%emt 0:00:50]} Kb3 {[%emt 0:00:17]} 51. Rh3+ {[%emt 0:00:09]} Kxa4 {[%emt 0:00:26]} 52. Rh4+ {[%emt 0:00:12]} Kb3 {[%emt 0:00:09]} 53. Rh3+ {[%emt 0:00:02]} Kc2 {[%emt 0:00:07]} 0-1

[Event "Polish Youth 1st League 2022"]
[Site "Lublin"]
[Date "2022.06.30"]
[Round "6.11"]
[White "Hertlein, Irena"]
[Black "Kroliczek, Gabriela"]
[Result "1-0"]
[ECO "A05"]
[WhiteElo "1873"]
[BlackElo "1934"]
[Annotator "RC"]
[PlyCount "68"]
[EventDate "2022.06.24"]
[EventType "team-tourn"]
[EventCountry "POL"]
[SourceTitle "playchess.com"]
[Source "ChessBase"]
[SourceQuality "1"]
[TimeControl "40/5400+30:1800+30"]

1. Nf3 {[%emt 0:00:05]} Nf6 {[%emt 0:00:09]} 2. g3 {[%emt 0:00:24]} d5 {[%emt 0:00:16]} 3. Bg2 {[%emt 0:01:10]} Nbd7 {[%emt 0:00:04]} 4. d4 {[%emt 0:04:33]} b5 {[%emt 0:00:41]} 5. O-O {[%emt 0:01:32]} e6 {[%emt 0:00:11]} 6. Nbd2 {[%emt 0:04:43]} c5 {[%emt 0:03:35]} 7. e4 {[%emt 0:24:21]} Bb7 {[%emt 0:17:37]} 8. e5 {[%emt 0:06:35]} Ne4 {[%emt 0:19:06]} 9. c3 {[%emt 0:02:43]} Nxd2 {[%emt 0:05:02]} 10. Bxd2 {[%emt 0:01:52]} Be7 {[%emt 0:00:22]} 11. Be3 {[%emt 0:02:48]} O-O {[%emt 0:09:04]} 12. Nd2 {[%emt 0:08:01]} Qb6 {[%emt 0:02:17]} 13. f4 {[%emt 0:06:56]} b4 {[%emt 0:11:39]} 14. Qf3 {[%emt 0:07:06]} f5 {[%emt 0:11:36]} 15. g4 {[%emt 0:03:13]} Ba6 {[%emt 0:02:43]} 16. Rfc1 {[%emt 0:02:07]} Bd3 {[%emt 0:02:03]} 17. Bf2 {[%emt 0:06:45]} Qa6 {[%emt 0:03:29]} 18. cxb4 {[%emt 0:02:12]} cxd4 {[%emt 0:03:05]} 19. Rc7 {[%emt 0:06:00]} Bxb4 {[%emt 0:02:52]} 20. Bf1 {[%emt 0:05:10]} Bxf1 {[%emt 0:02:43]} 21. Nxf1 {[%emt 0:00:00]} Nc5 {[%emt 0:01:52]} 22. a3 {[%emt 0:02:39]} Ne4 {[%emt 0:00:07]} 23. gxf5 {[%emt 0:00:21]} Rxf5 {[%emt 0:00:11]} 24. Rac1 {[%emt 0:00:37]} Bf8 {[%emt 0:00:38]} 25. Bxd4 {[%emt 0:00:29]} Qa4 {[%emt 0:00:41]} 26. Qe3 {[%emt 0:00:31]} a5 {[%emt 0:00:12]} 27. Ng3 {[%emt 0:00:24]} Nxg3 {[%emt 0:00:32]} 28. hxg3 {[%emt 0:00:01]} Rb8 {[%emt 0:00:34]} 29. g4 {[%emt 0:01:09]} Rf7 {[%emt 0:00:04]} 30. Rxf7 {[%emt 0:00:24]} Kxf7 {[%emt 0:00:03]} 31. f5 {[%emt 0:00:26]} Rb3 {[%emt 0:01:14]} 32. Qf4 {[%emt 0:00:38]} Rxb2 {[%emt 0:01:13]} 33. fxe6+ {[%emt 0:00:18]} Ke7 {[%emt 0:00:00]} 34. Rc7+ {[%emt 0:00:01]} Kd8 {[%emt 0:00:00]} 1-0

[Event "Polish Youth 1st League 2022"]
[Site "Lublin"]
[Date "2022.06.30"]
[Round "6.12"]
[White "Seemann, Pola"]
[Black "Duda, Aleksandra"]
[Result "1-0"]
[ECO "C00"]
[WhiteElo "1777"]
[BlackElo "1453"]
[Annotator "NA RC"]
[PlyCount "65"]
[EventDate "2022.06.24"]
[EventType "team-tourn"]
[EventCountry "POL"]
[SourceTitle "playchess.com"]
[Source "ChessBase"]
[SourceQuality "1"]
[TimeControl "40/5400+30:1800+30"]

1. e4 {[%emt 0:00:03]} e6 {[%emt 0:00:06]} 2. d4 {[%emt 0:00:04]} d5 {[%emt 0:00:04]} 3. Bd3 {[%emt 0:00:04]} dxe4 {[%emt 0:00:07]} 4. Bxe4 {[%emt 0:00:06]} Nf6 {[%emt 0:00:06]} 5. Bf3 {[%emt 0:00:03]} c5 {[%emt 0:00:08]} 6. Ne2 {[%emt 0:00:05]} Be7 {[%emt 0:00:28]} 7. Nbc3 {[%emt 0:00:35]} O-O {[%emt 0:00:53]} 8. Be3 {[%emt 0:01:40]} cxd4 {[%emt 0:02:06]} 9. Nxd4 {[%emt 0:00:26]} e5 {[%emt 0:02:13]} 10. Ndb5 {[%emt 0:00:16]} Nc6 {[%emt 0:08:34]} 11. Qxd8 {[%emt 0:09:00]} Rxd8 {[%emt 0:00:43]} 12. Nc7 {[%emt 0:02:43]} Rb8 {[%emt 0:00:34]} 13. N7d5 {[%emt 0:01:39]} Nxd5 {[%emt 0:07:55]} 14. Nxd5 {[%emt 0:01:08]} Bf8 {[%emt 0:06:52]} 15. O-O-O {[%emt 0:02:33]} Be6 {[%emt 0:03:03]} 16. a3 {[%emt 0:06:44]} f5 {[%emt 0:05:11]} 17. Nc3 {[%emt 0:11:24]} e4 {[%emt 0:01:15]} 18. Be2 {[%emt 0:00:28]} b6 {[%emt 0:07:59]} 19. f3 {[%emt 0:06:48]} exf3 {[%emt 0:02:59]} 20. Bxf3 {[%emt 0:01:24]} Na5 {[%emt 0:02:20]} 21. Nd5 {[%emt 0:04:31]} Rbc8 {[%emt 0:10:45]} 22. Bg5 {[%emt 0:13:29]} Rd7 {[%emt 0:06:37]} 23. Rhe1 {[%emt 0:02:33]} Bxd5 {[%emt 0:06:18]} 24. Bxd5+ {[%emt 0:00:30]} Kh8 {[%emt 0:00:21]} 25. Be6 {[%emt 0:00:51]} Rxd1+ {[%emt 0:00:08]} 26. Rxd1 {[%emt 0:00:08]} Re8 {[%emt 0:04:11]} 27. Bxf5 {[%emt 0:03:23]} h6 {[%emt 0:06:31]} 28. Bf4 {[%emt 0:04:07]} g5 {[%emt 0:01:34]} 29. Bg3 {[%emt 0:01:02]} Nc4 {[%emt 0:02:42]} 30. Bd3 {[%emt 0:03:02]} Nd6 {[%emt 0:02:45]} 31. Rf1 {[%emt 0:03:13]} Nc8 {[%emt 0:03:31]} 32. Bb5 {[%emt 0:00:51]} Rd8 {[%emt 0:02:28]} 33. Bc7 {[%emt 0:00:08]} 1-0